{"text_format":"1","workbook":"xlsx","n_sheets":1,"sheets":["Hoja1"],"not_rendered":{"charts":0,"images":0,"macros":1,"external_links":0,"defined_names":0,"comments":0,"pivot_tables":0},"unopened":[],"bounds":{"document_bytes":16777216,"sheet_cells":100000,"rows_first":2000,"rows_last":500,"rows_between":2000,"halvings":0,"cell_chars":16384,"cell_head_chars":4096},"cells_cut":0,"cells_raw":0,"read":"whole","date_system":"1900"}

{"sheet":"Hoja1","index":0,"n_rows":29,"n_cols":29,"rows_kept":29,"cut":false,"hidden":false,"merged":[[1,23,1,26],[2,25,2,26],[1,3,1,4],[1,5,1,6],[1,9,1,10],[1,11,1,12],[2,17,2,18],[2,19,2,20],[1,19,1,20],[0,1,0,12],[1,21,1,22],[2,21,2,22],[0,15,0,28],[1,7,1,8],[1,28,2,28],[1,15,2,16],[2,23,2,24],[1,27,2,27],[2,7,2,8],[2,9,2,10],[2,11,2,12],[2,5,2,6],[2,3,2,4],[1,1,2,2],[1,17,1,18]]}
[null,"COMPETENCIA APRENDER A APRENDER 2º PRIMARIA",null,null,null,null,null,null,null,null,null,null,null,null,null,"COMPETENCIAS APRENDER A APRENDER 2º PRIMARIA"]
[null,"2º A",null,"C. DA NATUREZA",null,"C. SOCIAIS",null,"E. FÍSICA",null,"E. MUSICAL",null,"E. PLÁSTICA",null,null,null,"2º A",null,"L. CASTELÁ",null,"l. GALEGA",null,"MATEMÁTICAS",null,"LINGUA ESTRANXEIRA",null,null,null,"NOTA MEDIA","CUALIFICACIÓN"]
[null,null,null,"2º-CNB1.1.1 - Manifesta certa autonomía na observación e na planificación de accións e tarefas e ten iniciativa na toma de decisións.",null,"2º-CSB1.1.2 - Manifesta autonomía na planificación e execución de accións e tarefas coidando a súa presentación, ten iniciativa na toma de decisións e asume responsabilidades",null,"2º-EFB1.3.2 - Demostra certa autonomía resolvendo problemas motores.",null,"2º-EMB2.4.4 - Elixe e combina ostinatos rítmicos e efectos sonoros para o acompañamento de recitacións, cancións e pezas instrumentais, con identificación da súa grafía.",null,"2º-EPB1.5.1 - Practica con precisión o recorte, o pegado, o pintado etc.",null,null,null,null,null,"2º-LCB5.5.1 - Crea, con axuda, sinxelos textos literarios (contos, poemas) a partir de pautas ou modelos dados.",null,"2º-LGB3.1.2 - Elabora o texto, con coherencia xeral e de xeito creativo.",null,"2º-MTB2.4.1 - Resolve problemas que impliquen o dominio dos contidos traballados.",null,"2º-PLEB3.3 - Fai hipóteses sobre o tema dun texto elemental a partir do titulo do mesmo e das imaxes que o ilustran.",null,"2º-PLEB4.3 - Escribe frases moi sinxelas, organizadas con coherencia na súa secuencia e con léxico relacionado co tema da escritura."]
[null,null,"ALUMNO /A","Nota",0.1,"Nota",0.1,"Nota",0.1,"Nota",0.1,"Nota",0.1,null,null,null,"ALUMNO /A","Nota",0.1,"Nota",0.1,"Nota",0.1,"Nota",0.1,"Nota",0.1,1]
[null,1,null,null,{"$f":"D5*0.1","v":0},null,{"$f":"F5*0.1","v":0},null,{"$f":"H5*0.1","v":0},null,{"$f":"J5*0.1","v":0},null,{"$f":"L5*0.1","v":0},null,null,1,null,null,{"$f":"R5*0.1","v":0},null,{"$f":"T5*0.1","v":0},null,{"$f":"V5*0.1","v":0},null,{"$f":"X5*0.1","v":0},null,{"$f":"Z5*0.1","v":0},{"$f":"SUM(AA5,Y5,W5,U5,S5,M5,K5,I5,G5,E5)","v":0},{"$f":"IF(AB5<5,\"INSUFICIENTE\",IF(AB5<6,\"SUFICIENTE\",IF(AB5<7,\"BIEN\",IF(AB5<9,\"NOTABLE\",\"SOBRESALIENTE\"))))","v":"INSUFICIENTE"}]
[null,2,null,null,{"$f":"D6*0.1","v":0},null,{"$f":"F6*0.1","v":0},null,{"$f":"H6*0.1","v":0},null,{"$f":"J6*0.1","v":0},null,{"$f":"L6*0.1","v":0},null,null,2,null,null,{"$f":"R6*0.1","v":0},null,{"$f":"T6*0.1","v":0},null,{"$f":"V6*0.1","v":0},null,{"$f":"X6*0.1","v":0},null,{"$f":"Z6*0.1","v":0},{"$f":"SUM(AA6,Y6,W6,U6,S6,M6,K6,I6,G6,E6)","v":0},{"$f":"IF(AB6<5,\"INSUFICIENTE\",IF(AB6<6,\"SUFICIENTE\",IF(AB6<7,\"BIEN\",IF(AB6<9,\"NOTABLE\",\"SOBRESALIENTE\"))))","v":"INSUFICIENTE"}]
[null,3,null,null,0,null,0,null,0,null,0,null,0,null,null,3,null,null,0,null,0,null,0,null,0,null,0,0,"INSUFICIENTE"]
[null,4,null,null,0,null,0,null,0,null,0,null,0,null,null,4,null,null,0,null,0,null,0,null,0,null,0,0,"INSUFICIENTE"]
[null,5,null,null,0,null,0,null,0,null,0,null,0,null,null,5,null,null,0,null,0,null,0,null,0,null,0,0,"INSUFICIENTE"]
[null,{"$f":"B9+1","v":6},null,null,0,null,0,null,0,null,0,null,0,null,null,{"$f":"P9+1","v":6},null,null,0,null,0,null,0,null,0,null,0,0,"INSUFICIENTE"]
[null,{"$f":"B10+1","v":7},null,null,0,null,0,null,0,null,0,null,0,null,null,{"$f":"P10+1","v":7},null,null,0,null,0,null,0,null,0,null,0,0,"INSUFICIENTE"]
[null,8,null,null,0,null,0,null,0,null,0,null,0,null,null,8,null,null,0,null,0,null,0,null,0,null,0,0,"INSUFICIENTE"]
[null,9,null,null,0,null,0,null,0,null,0,null,0,null,null,9,null,null,0,null,0,null,0,null,0,null,0,0,"INSUFICIENTE"]
[null,10,null,null,0,null,0,null,0,null,0,null,0,null,null,10,null,null,0,null,0,null,0,null,0,null,0,0,"INSUFICIENTE"]
[null,11,null,null,0,null,0,null,0,null,0,null,0,null,null,11,null,null,0,null,0,null,0,null,0,null,0,0,"INSUFICIENTE"]
[null,12,null,null,0,null,0,null,0,null,0,null,0,null,null,12,null,null,0,null,0,null,0,null,0,null,0,0,"INSUFICIENTE"]
[null,13,null,null,0,null,0,null,0,null,0,null,0,null,null,13,null,null,0,null,0,null,0,null,0,null,0,0,"INSUFICIENTE"]
[null,14,null,null,0,null,0,null,0,null,0,null,0,null,null,14,null,null,0,null,0,null,0,null,0,null,0,0,"INSUFICIENTE"]
[null,15,null,null,0,null,0,null,0,null,0,null,0,null,null,15,null,null,0,null,0,null,0,null,0,null,0,0,"INSUFICIENTE"]
[null,16,null,null,0,null,0,null,0,null,0,null,0,null,null,16,null,null,0,null,0,null,0,null,0,null,0,0,"INSUFICIENTE"]
[null,17,null,null,0,null,0,null,0,null,0,null,0,null,null,17,null,null,0,null,0,null,0,null,0,null,0,0,"INSUFICIENTE"]
[null,18,null,null,0,null,0,null,0,null,0,null,0,null,null,18,null,null,0,null,0,null,0,null,0,null,0,0,"INSUFICIENTE"]
[null,19,null,null,0,null,0,null,0,null,0,null,0,null,null,19,null,null,0,null,0,null,0,null,0,null,0,0,"INSUFICIENTE"]
[null,20,null,null,0,null,0,null,0,null,0,null,0,null,null,20,null,null,0,null,0,null,0,null,0,null,0,0,"INSUFICIENTE"]
[null,21,null,null,0,null,0,null,0,null,0,null,0,null,null,21,null,null,0,null,0,null,0,null,0,null,0,0,"INSUFICIENTE"]
[null,22,null,null,0,null,0,null,0,null,0,null,0,null,null,22,null,null,0,null,0,null,0,null,0,null,0,0,"INSUFICIENTE"]
[null,23,null,null,0,null,0,null,0,null,0,null,0,null,null,23,null,null,0,null,0,null,0,null,0,null,0,0,"INSUFICIENTE"]
[null,24,null,null,0,null,0,null,0,null,0,null,0,null,null,24,null,null,0,null,0,null,0,null,0,null,0,0,"INSUFICIENTE"]
[null,25,null,null,0,null,0,null,0,null,0,null,0,null,null,25,null,null,0,null,0,null,0,null,0,null,0,0,"INSUFICIENTE"]